fUSD/lending_fUSD_20260131
["ID","MTS","AMOUNT","RATE_DAILY","PERIOD"]
[404144106,1769874640895,-1173.7,0.0001477,2]
[404144108,1769874640905,-500.0,0.00014799,2]
[404144110,1769874640914,-500.0,0.00014799,2]
[404144112,1769874640923,-98415.89442491,0.000148,2]
[404144114,1769874640932,-500.0,0.00014899,2]
[404144116,1769874640942,-500.0,0.00014899,2]
[404144118,1769874640952,-500.0,0.00014899,2]
[404144120,1769874640961,-500.0,0.00014899,2]
[404144122,1769874640970,-500.0,0.00014899,2]
[404144124,1769874640980,-500.0,0.00014899,2]
[404144126,1769874640990,-250.0,0.00015037,2]
[404144128,1769874640999,-250.0,0.00015037,2]
[404144130,1769874641008,-1173.7,0.00015044,2]
[404144132,1769874641017,-420.0,0.00015121,2]
[404144134,1769874641027,-8941.45945846,0.00015163,2]
[404144137,1769874641036,-1631.0,0.00015172,2]
[404144138,1769874641045,-2500.0,0.00015231,2]
[404144140,1769874641054,-300.0,0.00015231,2]
[404144143,1769874641064,-250.0,0.00015231,2]
[404144145,1769874641073,-500.0,0.00015234,2]
[404144146,1769874641083,-5074.72087932,0.00015234,2]
[404144148,1769874641092,-195.0,0.00015234,2]
[404144151,1769874641101,-600.0,0.00015234,2]
[404144152,1769874641111,-1173.7,0.00015318,2]
[404144155,1769874641121,-151.0,0.00015452,2]
[404144156,1769874641130,-151.0,0.00015453,2]
[404144159,1769874641140,-151.59,0.00015469,2]
[404144160,1769874641149,-151.0,0.00015477,2]
[404144162,1769874641158,-1173.7,0.00015592,2]
[404144165,1769874641168,-1000.0,0.00015615,2]
[404144167,1769874641178,-8941.45945846,0.00015619,2]
[404144169,1769874641187,-500.0,0.00015793,2]
[404144171,1769874641198,-1173.7,0.00015866,2]
[404144173,1769874641208,-500.0,0.00015999,2]
[404144175,1769874641217,-500.0,0.00015999,2]
[404144177,1769874641226,-500.0,0.00015999,2]
[404144179,1769874641236,-500.0,0.00015999,2]
[404144180,1769874641245,-500.0,0.00015999,2]
[404144182,1769874641255,-500.0,0.00015999,2]
[404144184,1769874641265,-500.0,0.00015999,2]
[404144186,1769874641274,-8941.45945846,0.00016075,2]
[404144189,1769874641284,-6533.96691439,0.00016134,2]
[404144191,1769874641293,-9774.42373304,0.00016134,2]
[404144192,1769874641302,-13225.1427,0.00016134,2]
[404144194,1769874641312,-1173.7,0.0001614,2]
[404144196,1769874641322,-500.0,0.00016373,2]
[404144198,1769874641331,-500.0,0.00016373,2]
[404144200,1769874641341,-495.2614448,0.00016373,2]
[404144202,1769874641350,-453.96398478,0.00016373,2]
[404144204,1769874641359,-152.81544497,0.00016373,2]
[404144206,1769874641368,-500.0,0.00016373,2]
[404144208,1769874641378,-500.0,0.00016373,2]
[404144210,1769874641387,-500.0,0.00016373,2]
[404144212,1769874641396,-500.0,0.00016373,2]
[404144214,1769874641406,-548.87500636,0.00016373,2]
[404144216,1769874641415,-1173.7,0.00016414,2]
[404144218,1769874641425,-800.755787,0.00016438,2]
[404144221,1769874641435,-8941.45945846,0.00016531,2]
[404144222,1769874641450,-213.0,0.00016569,2]
[404144224,1769874641460,-4529.0,0.0001665,2]
[404144226,1769874641469,-1173.7,0.00016688,2]
[404144228,1769874641479,-796.64,0.00016754,2]
[404144230,1769874641490,-500.0,0.00016921,2]
[404144232,1769874641500,-500.0,0.00016921,2]
[404144235,1769874641510,-500.0,0.00016921,2]
[404144237,1769874641521,-500.0,0.00016921,2]
[404144239,1769874641530,-625.48366906,0.00016921,2]
[404144241,1769874641541,-229.59307043,0.00016921,2]
[404144243,1769874641550,-1173.7,0.00016962,2]
[404144245,1769874641560,-8941.45945846,0.00016988,2]
[404144247,1769874641569,-168.0,0.00017181,2]
[404144249,1769874641578,-168.0,0.00017184,2]
[404144251,1769874641587,-168.0,0.00017426,2]
[404144253,1769874641598,-8941.45945846,0.00017444,2]
[404144255,1769874641607,-168.0,0.0001748,2]
[404144257,1769874641617,-168.0,0.00017566,2]
[404144259,1769874641627,-1000.0,0.00017567,2]
[404144261,1769874641636,-168.0,0.0001758,2]
[404144263,1769874641646,-168.0,0.00017637,2]
[404144265,1769874641655,-168.0,0.00017725,2]
[404144267,1769874641664,-1300.0,0.000178,6]
[404144269,1769874641674,-715.90700045,0.000179,2]
[404144271,1769874641684,-200.0,0.000179,6]
[404144273,1769874641694,-3970.29585172,0.000179,2]
[404144275,1769874641705,-177.51749435,0.000179,2]
[404144277,1769874641716,-8941.45945846,0.000179,2]
[404144279,1769874641725,-500.0,0.00017973,2]
[404144281,1769874641735,-150.0,0.00017973,2]
[404144283,1769874641744,-150.0,0.00017973,2]
[404144285,1769874641754,-247.63881782,0.0001799,2]
[404144287,1769874641763,-247.63881782,0.0001799,2]
[404144289,1769874641773,-4146.176579,0.00017995,2]
[404144290,1769874641783,-151.0,0.00017997,2]
[404144291,1769874641792,-500.0,0.00017999,2]
[404144292,1769874641802,-500.0,0.00017999,2]
[404144293,1769874641811,-500.0,0.00017999,2]
[404144295,1769874641820,-500.0,0.00017999,2]
[404144296,1769874641830,-500.0,0.00017999,2]
[404144298,1769874641839,-500.0,0.00017999,2]
[404144300,1769874641848,-500.0,0.00017999,2]
[404144301,1769874641858,-500.0,0.00017999,2]
[404144302,1769874641867,-500.0,0.00017999,2]
[404144303,1769874641877,-500.0,0.00017999,2]
[404144304,1769874641887,-500.0,0.00017999,2]
[404144305,1769874641897,-500.0,0.00017999,2]
[404144306,1769874641908,-509.86150637,0.00017999,2]
[404144307,1769874641918,-500.0,0.00017999,2]
[404144308,1769874641927,-500.0,0.00017999,2]
[404144309,1769874641937,-500.0,0.00017999,2]
[404144310,1769874641947,-249.25387762,0.00017999,2]
[404144311,1769874641958,-500.0,0.00017999,2]
[404144312,1769874641968,-503.26394091,0.00017999,2]
[404144313,1769874641979,-300.0,0.00017999,2]
[404144314,1769874641989,-666.0,0.00017999,2]
[404144315,1769874641999,-500.0,0.00017999,2]
[404144316,1769874642009,-500.0,0.00017999,2]
[404144317,1769874642018,-607.47252695,0.00017999,2]
[404144318,1769874642028,-476.54174458,0.00017999,2]
[404144319,1769874642038,-500.0,0.00017999,2]
[404144320,1769874642047,-500.0,0.00017999,2]
[404144321,1769874642056,-500.0,0.00017999,2]
[404144322,1769874642066,-317.76317558,0.00017999,2]
[404144323,1769874642075,-500.0,0.00017999,2]
[404144324,1769874642084,-500.0,0.00017999,2]
[404144325,1769874642095,-500.0,0.00017999,2]
[404144326,1769874642104,-300.0,0.00017999,2]
[404144327,1769874642115,-666.0,0.00017999,2]
[404144328,1769874642124,-500.0,0.00017999,2]
[404144329,1769874642135,-500.0,0.00017999,2]
[404144330,1769874642144,-500.0,0.00017999,2]
[404144331,1769874642154,-201.378,0.00017999,2]
[404144332,1769874642165,-403385.16226384,0.00018,2]
[404144333,1769874642178,-920.86997726,0.00018,2]
[404144334,1769874642197,-532.31760081,0.00018,2]
[404144335,1769874642208,-31037.93474833,0.00018,2]
[404144338,1769874642219,-4065.0,0.00018,2]
[404144339,1769874642231,-4655.68611465,0.00018,2]
[404144340,1769874642252,-655.28295906,0.00018,2]
[404144341,1769874642264,-256.2,0.00018,2]
[404144361,1769874645578,-598.02526269,0.00018,2]
[404144364,1769874645642,-18483.87454893,0.00018,2]
[404144402,1769874646834,-3179.19383877,0.00018,2]
[404144403,1769874646847,-3498.88863397,0.00018,2]
[404144404,1769874646867,-3880.96655962,0.00018,2]
[404144405,1769874646879,-1103.2,0.00018,2]
[404144406,1769874646898,-31707.93871008,0.00018,2]
[404144407,1769874646910,-4275.75,0.00018,2]
[404144408,1769874646921,-570.06,0.00018,2]
[404144409,1769874646931,-2563.77,0.00018,2]
[404144410,1769874646951,-8568.88412575,0.00018,2]
[404144413,1769874676215,700.0,0.00043495,57]
[404144438,1769874976320,688.0,0.00043493,30]
[404144439,1769875147950,519.95748279,0.000155,4]
[404144440,1769875283286,10000.0,0.0004349,120]
[404144441,1769875322740,10000.0,0.0004349,120]
[404144442,1769875346611,10000.0,0.0004349,120]
[404144443,1769875350765,10000.0,0.0004349,120]
[404144444,1769875352969,10000.0,0.0004349,120]
[404144445,1769875356257,10000.0,0.0004349,120]
[404144446,1769875358586,10000.0,0.0004349,120]
[404144447,1769875360862,10000.0,0.0004349,120]
[404144448,1769875362472,10000.0,0.0004349,120]
[404144449,1769875364405,10000.0,0.0004349,120]
[404144450,1769875385594,10000.0,0.0004349,120]
[404144451,1769875387474,10000.0,0.0004349,120]
[404144452,1769875389801,10000.0,0.0004349,120]
[404144453,1769875391389,10000.0,0.0004349,120]
[404144454,1769875393193,10000.0,0.0004349,120]
[404144455,1769875396771,10000.0,0.0004349,120]
[404144456,1769875401745,10000.0,0.0004349,120]
[404144502,1769875832095,-1033.229,0.00013474,2]
[404144503,1769875832105,-172.84,0.00013474,2]
[404144504,1769875832114,-2500.0,0.00013549,2]
[404144505,1769875832124,-300.0,0.00013599,2]
[404144506,1769875832133,-300.0,0.00013599,2]
[404144507,1769875832143,-268.07887314,0.000136,2]
[404144508,1769875832152,-160.00791549,0.000136,2]
[404144509,1769875832163,-237.22418709,0.000136,2]
[404144510,1769875832173,-355.49777645,0.000136,2]
[404144511,1769875832182,-204.31099121,0.000136,2]
[404144512,1769875832194,-150.97580519,0.000136,2]
[404144513,1769875832203,-1176.99124006,0.00013639,2]
[404144514,1769875832224,-574.6,0.00013639,2]
[404144515,1769875832235,-91.68694535,0.00013639,2]
[404144516,1769875832245,-305.24443562,0.00013639,2]
[404144517,1769875832254,-272.82454609,0.00013648,2]
[404144518,1769875832264,-73.99707294,0.00013648,2]
[404144519,1769875832282,-161.00292706,0.00013648,2]
[404144520,1769875832292,-414.91464659,0.00013649,2]
[404144521,1769875832302,-164.17,0.00013649,2]
[404144522,1769875832312,-21975.64695294,0.00013649,2]
[404144523,1769875832323,-1645.96436582,0.00013649,2]
[404144524,1769875832334,-1354.03563418,0.00013649,2]
[404144525,1769875832346,-18292.11207238,0.00013649,2]
[404144526,1769875832357,-1944.41123864,0.00013649,2]
[404144527,1769875832368,-827.5,0.00013649,2]
[404144528,1769875832389,-1372.97586918,0.00013649,2]
[404144529,1769875832400,-450.72894432,0.00013649,2]
[404144530,1769875832412,-1335.22313328,0.00013649,2]
[404144531,1769875832423,-458.44747329,0.00013649,2]
[404144532,1769875832467,-689.16136204,0.00013649,2]
[404144552,1769875838201,-2473.13499175,0.00013649,2]
[404144553,1769875838215,-936.67,0.00013649,2]
[404144554,1769875838232,-406.41258944,0.00013649,2]
[404144555,1769875838266,-16933.60000001,0.00013649,2]
[404144556,1769875838279,-17003.80000001,0.00013649,2]
[404144557,1769875838393,-806.2138,0.00013649,2]
[404144558,1769875838405,-352.39999993,0.00013649,2]
[404144559,1769875838432,-18280.2667488,0.00013649,2]
[404144560,1769875838444,-20809.26981631,0.00013649,2]
[404144561,1769875838455,-5523.718,0.00013649,2]
[404144562,1769875838561,-16026.24260985,0.00013649,2]
[404144563,1769875838572,-85000.00000001,0.00013649,2]
[404144564,1769875838584,-994.0,0.00013649,2]
[404144737,1769875840562,-917.62635128,0.00013649,2]
[404144739,1769875840575,-1553.73338953,0.00013649,2]
[404144741,1769875840586,-586.80897448,0.00013649,2]
[404144744,1769875840598,-1000.04798855,0.00013649,2]
[404144746,1769875840610,-4250.0,0.00013649,2]
[404144749,1769875840690,-2125.0,0.00013649,2]
[404144750,1769875840820,-1262.49999999,0.00013649,2]
[404144751,1769875840835,-850.0,0.00013649,2]
[404144752,1769875840847,-343.11,0.00013649,2]
[404144779,1769875845167,-12973.43769201,0.00013649,2]
[404144780,1769875845205,-917.3613778,0.00013649,2]
[404144782,1769875845328,-783.07770613,0.00013649,2]
[404144783,1769875845341,-654.62163137,0.00013649,2]
[404144784,1769875845352,-520.33099581,0.00013649,2]
[404144785,1769875845364,-1016.65390737,0.00013649,2]
[404144786,1769875845403,-1464.48439583,0.00013649,2]
[404144787,1769875845505,-8500.0,0.00013649,2]
[404144788,1769875845890,-511.2450525,0.00013649,2]
[404144791,1769875845933,-431.0589894,0.00013649,2]
[404144796,1769875846275,-262.9,0.00013649,2]
[404144798,1769875846287,-564.04685,0.00013649,2]
[404144799,1769875846304,-422.38499994,0.00013649,2]
[404144800,1769875846316,-598.649,0.00013649,2]
[404144801,1769875846442,-2212.24329871,0.00013649,2]
[404144802,1769875846483,-345882.03986576,0.00013649,2]
[404144803,1769875846498,-194217.63042141,0.00013649,2]
[404144804,1769875846509,-302.6795128,0.00013649,2]
[404144805,1769875846524,-630.21210057,0.00013649,2]
[404144806,1769875846535,-5965.86204636,0.00013649,2]
[404144807,1769875846547,-11350.22987238,0.00013649,2]
[404144808,1769875846668,-736.01902198,0.00013649,2]
[404144809,1769875846679,-4233.35,0.00013649,2]
[404144810,1769875846690,-1469.28946283,0.00013649,2]
[404144823,1769875878470,14429.0,0.0004349,30]
[404144828,1769875937371,700.0,0.0004349,35]
[404144829,1769876075454,500.0,0.0004349,120]
[404144831,1769876101007,300.0,0.0004349,120]
[404144832,1769876101594,311.1,0.0004349,120]
[404144833,1769876102201,322.6107,0.0004349,120]
[404144834,1769876103027,334.5472959,0.0004349,120]
[404144835,1769876103850,334.5472959,0.0004349,120]
[404144836,1769876106348,500.0,0.0004349,119]
[404144837,1769876112437,500.0,0.0004349,118]
[404144839,1769876186273,500.0,0.0004349,115]
[404144840,1769876195706,500.0,0.0004349,114]
[404144841,1769876200068,500.0,0.0004349,113]
[404144845,1769876288659,151.0,0.0004349,120]
[404144846,1769876289298,151.0,0.0004349,120]
[404144847,1769876289960,151.0,0.0004349,120]
[404144848,1769876290574,151.0,0.0004349,120]
[404144849,1769876291195,151.0,0.0004349,120]
[404144850,1769876291813,151.0,0.0004349,120]
[404144851,1769876292422,151.0,0.0004349,120]
[404144852,1769876293026,151.0,0.0004349,120]
[404144853,1769876293635,151.0,0.0004349,120]
[404144854,1769876294273,151.0,0.0004349,120]
[404144855,1769876294858,151.0,0.0004349,120]
[404144893,1769876423577,151.0,0.0004349,120]
[404144894,1769876424288,156.587,0.0004349,120]
[404144895,1769876425071,162.380719,0.0004349,120]
[404144896,1769876425589,168.3888056,0.0004349,120]
[404144897,1769876426219,174.61919141,0.0004349,120]
[404144898,1769876426857,181.08010149,0.0004349,120]
[404144899,1769876428006,187.78006525,0.0004349,120]
[404144900,1769876428685,194.72792766,0.0004349,120]
[404144901,1769876429341,201.93286099,0.0004349,120]
[404144902,1769876429954,209.40437684,0.0004349,120]
[404144903,1769876430569,217.15233878,0.0004349,120]
[404144904,1769876431261,225.18697532,0.0004349,120]
[404144905,1769876431908,233.51889341,0.0004349,120]
[404144906,1769876432526,242.15909246,0.0004349,120]
[404144907,1769876433150,251.11897888,0.0004349,120]
[404144908,1769876433791,260.4103811,0.0004349,120]
[404144909,1769876434448,270.0455652,0.0004349,120]
[404144910,1769876435196,280.03725112,0.0004349,120]
[404144911,1769876435716,290.39862941,0.0004349,120]
[404144912,1769876436330,290.39862941,0.0004349,120]
[404144914,1769876493039,826.583,0.00013082,2]
[404144915,1769876493120,172.84,0.00013082,2]
[404144916,1769876523762,500.0,0.00043485,112]
[404144917,1769876534867,500.0,0.00043485,111]
[404144918,1769876604164,49000.0,0.00043485,32]
[404144921,1769876906469,88545.31281281,0.00015,3]
[404144952,1769876962178,1007.61835131,0.00013161,2]
[404144953,1769876967002,150.97580518,0.00013161,2]
[404144975,1769877032254,-203.49629042,0.00013238,2]
[404144977,1769877032264,-500.0,0.00013247,2]
[404144978,1769877032274,-500.0,0.00013247,2]
[404144979,1769877032283,-500.0,0.00013247,2]
[404144980,1769877032293,-500.0,0.00013247,2]
[404144981,1769877032303,-500.0,0.00013247,2]
[404144982,1769877032316,-500.0,0.00013247,2]
[404144983,1769877032326,-500.0,0.00013247,2]
[404144984,1769877032336,-500.0,0.00013247,2]
[404144985,1769877032347,-500.0,0.00013247,2]
[404144986,1769877032356,-500.0,0.00013247,2]
[404144987,1769877032366,-500.0,0.00013247,2]
[404144988,1769877032378,-500.0,0.00013247,2]
[404144989,1769877032388,-250.0,0.00013247,2]
[404144990,1769877032398,-300.0,0.00013247,2]
[404144991,1769877032409,-165.0,0.00013247,2]
[404144992,1769877032421,-300.0,0.00013247,2]
[404144993,1769877032431,-517.0,0.00013247,2]
[404144994,1769877032442,-150.0,0.00013247,2]
[404144995,1769877032453,-194.0,0.00013247,2]
[404144996,1769877032462,-8552.68722205,0.00013248,2]
[404144997,1769877032528,-251.42729024,0.00013247,2]
[404144998,1769877032540,-83.91278817,0.00013247,2]
[404144999,1769877032551,-500.0,0.00013247,2]
[404145000,1769877032561,-500.0,0.00013247,2]
[404145001,1769877032571,-93015.77916199,0.00013248,2]
[404145002,1769877032583,-6215.774511,0.00013248,2]
[404145003,1769877032596,-23513.01279078,0.00013248,2]
[404145012,1769877036359,500.0,0.00043493,30]
[404145027,1769877038393,-420.80600006,0.00013248,2]
[404145029,1769877038404,-339.75281282,0.00013248,2]
[404145032,1769877038416,-581.60390491,0.00013248,2]
[404145034,1769877038432,-17382.10557405,0.00013248,2]
[404145037,1769877038448,-9663.75,0.00013248,2]
[404145039,1769877038459,-1193.99999996,0.00013248,2]
[404145041,1769877038516,-111.07221916,0.00013248,2]
[404145213,1769877040393,-8208.20329513,0.00013248,2]
[404145223,1769877040455,-1437668.59986324,0.00013248,2]
[404145224,1769877040648,-288.77267744,0.00013248,2]
[404145225,1769877040714,-1039.17007384,0.00013248,2]
[404145226,1769877040776,-929.58530234,0.00013248,2]
[404145251,1769877044313,-1988.8604776,0.00013248,2]
[404145253,1769877044367,-720.419996,0.00013248,2]
[404145254,1769877044425,-326.05020054,0.00013248,2]
[404145255,1769877045723,-24718.44754048,0.00013248,2]
[404145278,1769877046396,-80974.19693944,0.00013248,2]
[404145279,1769877046636,-1157.83006315,0.00013248,2]
[404145283,1769877046648,-593.464955,0.00013248,2]
[404145286,1769877046660,-748.58641696,0.00013248,2]
[404145289,1769877046698,-5151.64648322,0.00013248,2]
[404145303,1769877067015,202.68537379,0.00043493,120]
[404145304,1769877093008,661.267,0.00012983,2]
[404145305,1769877093128,172.84027226,0.00012983,2]
[404145306,1769877124074,1399.51415067,0.00013149,2]
[404145307,1769877207820,150.97580518,0.00013149,2]
[404145308,1769877348498,906.85651617,0.00013149,2]
[404145309,1769877368067,1000.0,0.00013148,2]
[404145310,1769877438101,1426.3761,0.00013148,2]
[404145311,1769877468760,150.97580518,0.00013149,2]
[404145315,1769877514655,1578087.2218,0.00013148,2]
[404145316,1769877530465,1000.0,0.00013148,2]
[404145317,1769877635745,485.82,0.00043483,30]
[404145318,1769877671424,412885.95539405,0.00013149,2]
[404145319,1769877671454,2104.58654739,0.00013149,2]
[404145320,1769877672708,-2985.82169403,0.00013149,2]
[404145321,1769877680292,-288.62836425,0.00013149,2]
[404145322,1769877686014,-1295.92137329,0.00013149,2]
[404145323,1769877690076,-258.0,0.00013149,2]
[404145325,1769877830526,4302.47,0.00011233,2]
[404145328,1769877916020,899.46357284,0.00043473,31]
[404145329,1769877959002,-153.02502253,0.00013049,2]
[404145330,1769877961111,-322.08934496,0.00013049,2]
[404145331,1769877963184,-1542.72630868,0.00013049,2]
[404145332,1769877975404,1500.00000001,0.00043473,30]
[404145338,1769878113434,-2500.0,0.0001995,15]
[404145339,1769878124524,-500.0,0.00012941,2]
[404145340,1769878124547,-992.90782458,0.00012983,2]
[404145383,1769878215067,-278.86,0.00012936,2]
[404145384,1769878215091,-66.70906142,0.00012983,2]
[404145385,1769878215116,-154.43093858,0.00013039,2]
[404145386,1769878222689,-1951.56959241,0.000129,2]
[404145387,1769878224089,-191.87,0.000129,2]
[404145388,1769878228384,-575.38540759,0.000129,2]
[404145389,1769878230373,-671.86649392,0.000129,2]
[404145411,1769878231430,-1630.87669183,0.000129,2]
[404145414,1769878231442,-1215.475,0.000129,2]
[404145415,1769878231453,-433.86586324,0.000129,2]
[404145417,1769878231463,-49.06535184,0.00013039,2]
[404145418,1769878231473,-300.0,0.00013048,2]
[404145420,1769878231482,-1200.0,0.00013048,2]
[404145422,1769878231492,-180.00434459,0.00013049,2]
[404145423,1769878231501,-12289.76746807,0.00013049,2]
[404145425,1769878231513,-482.13,0.00013049,2]
[404145426,1769878231524,-30970.81690571,0.00013049,2]
[404145428,1769878231544,-304.39711702,0.00013049,2]
[404145430,1769878231558,-610.66066547,0.00013049,2]
[404145431,1769878231571,-856.52330817,0.00013049,2]
[404145433,1769878231596,-674.68233592,0.00013049,2]
[404145434,1769878231609,-589.09453245,0.00013049,2]
[404145435,1769878231622,-1309.68764366,0.00013049,2]
[404145436,1769878231635,-827.08473548,0.00013049,2]
[404145437,1769878231654,-317.52127435,0.00013049,2]
[404145438,1769878231670,-538.39856087,0.00013049,2]
[404145453,1769878237547,-190.97718226,0.00013048,2]
[404145454,1769878237557,-5781.70987608,0.00013049,2]
[404145456,1769878237676,-153523.62319699,0.00013049,2]
[404145458,1769878237687,-52285.6,0.00013049,2]
[404145459,1769878237698,-670.10000021,0.00013049,2]
[404145460,1769878237710,-2412.63,0.00013049,2]
[404145461,1769878237765,-471.87366345,0.00013049,2]
[404145463,1769878237778,-46337.672273,0.00013049,2]
[404145465,1769878237790,-10509.47896082,0.00013049,2]
[404145639,1769878239512,-722113.50825128,0.00013049,2]
[404145641,1769878239530,-8413.18195188,0.00013049,2]
[404145644,1769878239541,-24150.0,0.00013049,2]
[404145647,1769878239566,-625.17518359,0.00013049,2]
[404145649,1769878239578,-390.38430521,0.00013049,2]
[404145777,1769878242074,-1.7e-07,0.00013049,2]
[404145778,1769878242090,-1247.15000003,0.00013049,2]
[404145779,1769878242101,-803.2,0.00013049,2]
[404145780,1769878242196,-4022.5,0.00013049,2]
[404145819,1769878243999,-938.58644452,0.00013049,2]
[404145820,1769878244059,-3798.90044649,0.00013049,2]
[404145821,1769878244071,-7946.31300878,0.00013049,2]
[404145822,1769878244110,-793.43303816,0.00013049,2]
[404145823,1769878244122,-850.33462296,0.00013049,2]
[404145847,1769878245570,-561.54357013,0.00013049,2]
[404145848,1769878245768,-296.92009,0.00013049,2]
[404145849,1769878245782,-1307.91375112,0.00013049,2]
[404145850,1769878245823,-2937.09297514,0.00013049,2]
[404145854,1769878253798,266.271,0.00013048,3]
[404145856,1769878349028,-1854.27946016,0.00012949,2]
[404145857,1769878357216,-1492.9143056,0.00012949,2]
[404145858,1769878358734,-339.38924425,0.00012949,2]
[404145859,1769878361189,-1286.51079292,0.00012949,2]
[404145860,1769878364817,-550.0,0.00012949,2]
[404145861,1769878366388,-241.10012185,0.00012949,2]
[404145862,1769878369603,-852.41999983,0.00012949,2]
[404145863,1769878371739,-582.53454285,0.00012949,2]
[404145864,1769878373511,-220.08765661,0.00012949,2]
[404145865,1769878376138,-1492.90782458,0.00012949,2]
[404145866,1769878382491,-300.0,0.00012948,2]
[404145867,1769878382514,-109.06984826,0.00012949,2]
[404145868,1769878384365,-500.0,0.00012949,2]
[404145869,1769878386353,-1492.90782458,0.00012949,2]
[404145870,1769878388986,-362.88705281,0.00012949,2]
[404145871,1769878390167,150.0,0.00012872,2]
[404145872,1769878391670,-1492.90782458,0.00012949,2]
[404145873,1769878395023,-1142.65305143,0.00012949,2]
[404145874,1769878398313,-280.77359984,0.00012949,2]
[404145875,1769878400606,-190.48782475,0.00012949,2]
[404145876,1769878402586,-195.17,0.00012949,2]
[404145877,1769878406555,-2830.0,0.00012949,2]
[404145878,1769878410981,-1492.90782458,0.00012949,2]
[404145879,1769878412939,-500.00000017,0.00012949,2]
[404145880,1769878415992,-203.46109691,0.00012949,2]
[404145881,1769878421816,-1492.90782458,0.00012949,2]
[404145882,1769878424478,-504.29197886,0.00012949,2]
[404145883,1769878424501,-1809.02323992,0.00012949,2]
[404145884,1769878428596,-440.90782475,0.00012949,2]
[404145885,1769878453805,166.66,0.00012164,2]
[404145886,1769878453996,166.66,0.0001242,2]
[404145887,1769878454213,166.66,0.00012676,2]
[404145888,1769878632805,219.7131896,0.0004348,120]
[404145889,1769878778050,500.0,0.00012775,2]
[404145890,1769878778089,500.0,0.00012775,2]
[404145891,1769878778131,500.0,0.0001283,2]
[404145892,1769878778169,500.0,0.0001283,2]
[404145893,1769878778292,500.0,0.00012885,2]
[404145894,1769878778336,500.0,0.00012885,2]
[404145896,1769878875557,500.0,0.00012775,2]
[404145897,1769878875682,150.0,0.00012775,2]
[404145898,1769878875735,500.0,0.0001283,2]
[404145899,1769878875870,150.0,0.0001283,2]
[404145900,1769878875909,500.0,0.00012885,2]
[404145901,1769878876299,150.0,0.00012885,2]
[404145902,1769878876335,165.88836911,0.00012775,2]
[404145903,1769878876514,150.0,0.00012775,2]
[404145904,1769878877032,500.0,0.00012775,2]
[404145905,1769878877081,-256.0,0.00012932,2]
[404145906,1769878877104,-166.66,0.00012932,2]
[404145907,1769878877126,-500.0,0.00012937,2]
[404145908,1769878877149,-500.0,0.00012939,2]
[404145909,1769878877172,-500.0,0.00012939,2]
[404145910,1769878877195,-431.32980633,0.00012939,2]
[404145911,1769878877242,500.0,0.0001283,2]
[404145912,1769878877360,500.0,0.00012885,2]
[404145913,1769878877699,150.0,0.00012775,2]
[404145991,1769878911661,5149.92318375,0.00012849,2]
[404145992,1769878911941,500.0,0.00012832,2]
[404145994,1769878925428,151.0,0.00043493,120]
[404145995,1769878925777,1000.0,0.00043493,120]
[404145996,1769878925865,500.0,0.00043493,120]
[404145998,1769878926407,1000.0,0.00043493,120]
[404145999,1769878926493,500.0,0.00043493,120]
[404146000,1769878926559,151.0,0.00043493,120]
[404146001,1769878928252,200.0,0.00043493,120]
[404146002,1769878928330,854.2589148,0.00043493,120]
[404146003,1769878928946,322.6107,0.00043493,120]
[404146004,1769878929956,200.0,0.00043493,120]
[404146005,1769878932015,500.52951477,0.00043493,120]